bitfinex/quotes_BTCUSD_20250406
["timestamp","ask_amount","ask_price","bid_price","bid_amount"]
[1743982923278,0.255297,78340.0,78339.0,0.005]
[1743982923455,0.255297,78340.0,78337.0,0.00013583]
[1743982923656,0.012765,78338.0,78337.0,0.02513583]
[1743982923880,0.012765,78338.0,78337.0,0.00013583]
[1743982924295,0.255294,78341.0,78337.0,0.00013583]
[1743982924493,0.255301,78339.0,78337.0,0.00013583]
[1743982924697,0.1421537,78338.0,78337.0,0.00013583]
[1743982924899,0.268123,78322.0,78321.0,0.000334]
[1743982925098,0.3975117,78322.0,78321.0,0.00046988]
[1743982925698,0.84244437,78322.0,78321.0,0.00046988]
[1743982926113,0.268157,78312.0,78311.0,0.002]
[1743982926352,0.268202,78299.0,78298.0,0.11428696]
[1743982926500,0.3975907,78299.0,78298.0,0.11442293]
[1743982926843,0.57429885,78299.0,78298.0,0.00013597]
[1743982928138,0.57117575,78299.0,78298.0,0.00013597]
[1743982928339,0.58394675,78299.0,78298.0,0.00013597]
[1743982928564,0.56152785,78299.0,78298.0,0.00013597]
[1743982928819,0.01653915,78299.0,78298.0,0.00013597]
[1743982929199,0.01277,78306.0,78298.0,0.00013597]
[1743982929397,0.28401753,78299.0,78298.0,0.00013597]
[1743982929610,0.3975907,78299.0,78298.0,0.00013597]
[1743982929755,0.41340623,78299.0,78298.0,0.00013597]
[1743982930450,0.62432623,78299.0,78298.0,0.00013597]
[1743982930658,0.01581553,78299.0,78298.0,0.00013597]
[1743982930867,0.02858653,78299.0,78298.0,0.00013597]
[1743982931074,0.012771,78299.0,78298.0,0.00013597]
[1743982931310,0.15797523,78299.0,78298.0,0.00013597]
[1743982931486,0.1421597,78299.0,78298.0,0.00013597]
[1743982931681,0.57357523,78299.0,78298.0,0.00013597]
[1743982932026,0.44418653,78299.0,78298.0,0.00013597]
[1743982932143,0.56080423,78299.0,78298.0,0.00013597]
[1743982932353,0.01581553,78299.0,78298.0,0.01290697]
[1743982932929,0.025,78353.0,78328.0,0.012766]
[1743982932930,0.4156,78346.0,78328.0,0.012766]
[1743982933135,0.255293,78342.0,78332.0,0.012766]
[1743982933292,0.255297,78340.0,78330.0,0.012766]
[1743982933490,0.1293887,78340.0,78329.0,0.478979]
[1743982933689,0.28388053,78339.0,78329.0,0.21088]
[1743982933903,0.255308,78337.0,78329.0,0.21088]
[1743982934105,0.255315,78335.0,78329.0,0.21088]
[1743982934313,0.255315,78335.0,78329.0,0.21101597]
[1743982934518,0.01581553,78334.0,78329.0,0.21101597]
[1743982934723,0.268096,78330.0,78329.0,0.00013597]
[1743982934926,0.8130847,78330.0,78329.0,0.00013597]
[1743982935322,0.82890023,78330.0,78329.0,0.00013597]
[1743982935538,0.43141553,78330.0,78329.0,0.00013597]
[1743982936513,0.43141553,78330.0,78329.0,0.29823497]
[1743982936919,0.4156,78330.0,78329.0,0.00513597]
[1743982937119,0.4156,78330.0,78329.0,0.00013597]
[1743982937321,0.43141553,78330.0,78329.0,0.00013597]
[1743982937568,0.68674553,78330.0,78329.0,0.00013597]
[1743982937849,0.43141553,78330.0,78329.0,0.01790197]
[1743982938258,0.4156,78330.0,78329.0,0.01790197]
[1743982938456,0.43141553,78330.0,78329.0,0.01790197]
[1743982939315,0.01581553,78330.0,78329.0,0.00513597]
[1743982939654,0.255325,78333.0,78329.0,0.00013597]
[1743982939915,0.012766,78330.0,78329.0,0.00013597]
[1743982940293,0.1421547,78330.0,78329.0,0.00013597]
[1743982940620,0.57357023,78330.0,78329.0,0.00013597]
[1743982942443,0.15797023,78330.0,78329.0,0.00013597]
[1743982944684,0.90080423,78330.0,78296.0,0.025]
[1743982944886,0.012771,78301.0,78297.0,0.0004701]
[1743982945090,0.268189,78303.0,78297.0,0.0254701]
[1743982945290,0.01277,78305.0,78297.0,0.0004701]
[1743982945492,0.01593914,78302.0,78297.0,0.0004701]
[1743982945811,0.01277,78305.0,78297.0,0.0004701]
[1743982946015,0.268205,78298.0,78297.0,0.0004701]
[1743982946181,0.3975937,78298.0,78297.0,0.0004701]
[1743982946376,0.83872985,78298.0,78297.0,0.0004701]
[1743982947150,0.82913284,78298.0,78297.0,0.0004701]
[1743982947351,0.82913284,78298.0,78291.0,5e-07]
[1743982947352,0.255453,78292.0,78291.0,5e-07]
[1743982947557,0.255453,78292.0,78291.0,6e-07]
[1743982947558,1.1532137,78292.0,78291.0,6e-07]
[1743982947792,0.012775,78275.0,78250.0,0.000334]
[1743982947995,1.1532727,78275.0,78274.0,2e-07]
[1743982948186,1.1532727,78275.0,78250.0,0.000334]
[1743982948187,0.608311,78267.0,78266.0,3.3e-07]
[1743982948394,0.7376997,78267.0,78266.0,3.3e-07]
[1743982948691,0.7376997,78267.0,78250.0,0.000334]
[1743982948692,0.268342,78258.0,78250.0,0.000334]
[1743982948927,0.25556,78260.0,78250.0,0.000334]
[1743982948928,0.255563,78259.0,78250.0,0.000334]
[1743982949055,0.1421667,78258.0,78257.0,0.0007886]
[1743982949256,0.22598971,78258.0,78257.0,0.0007886]
[1743982949876,0.15810584,78258.0,78257.0,0.0007886]
[1743982951335,0.15810584,78258.0,78257.0,6e-07]
[1743982951336,0.57370584,78258.0,78257.0,6e-07]
[1743982951894,0.012779,78252.0,78250.0,0.000334]
[1743982952113,0.268373,78249.0,78248.0,0.0003342]
[1743982952325,0.75230255,78249.0,78248.0,2e-07]
[1743982952591,0.608401,78241.0,78240.0,1e-06]
[1743982952826,1.1533897,78241.0,78240.0,1e-06]
[1743982953034,0.14465364,78241.0,78240.0,1e-06]
[1743982953336,0.01526494,78241.0,78240.0,1e-06]
[1743982953675,0.255611,78244.0,78240.0,1e-06]
[1743982953885,0.01526494,78243.0,78240.0,1e-06]
[1743982954138,0.255617,78242.0,78240.0,1e-06]
[1743982954326,0.268397,78242.0,78240.0,1e-06]
[1743982954541,0.1421697,78241.0,78240.0,1e-06]
[1743982954701,0.15743464,78241.0,78240.0,1e-06]
[1743982954910,0.57303464,78241.0,78240.0,1e-06]
[1743982955115,0.91303464,78241.0,78240.0,1e-06]
[1743982955718,0.15743464,78241.0,78240.0,1e-06]
[1743982955945,0.2294129,78241.0,78240.0,1e-06]
[1743982956323,0.5694129,78241.0,78240.0,1e-06]
[1743982957324,0.9850129,78241.0,78240.0,1e-06]
[1743982958042,0.012784,78222.0,78221.0,0.002]
[1743982958246,0.012784,78222.0,78214.0,0.0003326]
[1743982958247,0.608476,78219.0,78218.0,4e-07]
[1743982958451,0.60849,78215.0,78214.0,1e-06]
[1743982958666,1.1534787,78215.0,78214.0,1e-06]
[1743982958988,1.18139029,78215.0,78214.0,1e-06]
[1743982959138,0.82874364,78215.0,78214.0,1e-06]
[1743982959345,0.43086494,78215.0,78214.0,1e-06]
[1743982959551,0.01526494,78215.0,78214.0,0.00013723]
[1743982959726,0.15743864,78215.0,78214.0,0.00013723]
[1743982959930,0.1421737,78215.0,78214.0,0.00013723]
[1743982960332,0.15743864,78215.0,78214.0,0.00013723]
[1743982960555,0.2294353,78215.0,78214.0,0.00013723]
[1743982960715,0.15743864,78215.0,78214.0,0.00013723]
[1743982961366,0.49743864,78215.0,78214.0,0.00013723]
[1743982962598,0.15743864,78215.0,78214.0,0.00013723]
[1743982962823,0.01526494,78215.0,78214.0,0.00013723]
[1743982963031,0.02804994,78215.0,78214.0,0.00013723]
[1743982963238,0.012785,78215.0,78214.0,0.00013723]
[1743982963447,0.02804994,78215.0,78214.0,0.00013723]
[1743982965565,0.01526494,78215.0,78214.0,0.00013723]
[1743982965971,0.02804994,78215.0,78214.0,0.00013723]
[1743982966169,0.01526494,78215.0,78214.0,0.00013723]
[1743982966350,0.01526494,78215.0,78214.0,0.01792223]
[1743982966527,0.268449,78227.0,78216.0,0.012785]
[1743982966732,0.255701,78217.0,78214.0,0.00013723]
[1743982966934,0.012785,78215.0,78214.0,0.00013723]
[1743982967449,0.02804994,78215.0,78214.0,0.00013723]
[1743982967734,0.15743864,78215.0,78214.0,0.00013723]
[1743982968454,0.57303864,78215.0,78214.0,0.00013723]
[1743982968651,1.0520587,78215.0,78214.0,0.00013723]
[1743982969326,0.012785,78211.0,78210.0,8.3e-07]
[1743982969532,0.012785,78211.0,78193.0,0.0003326]
[1743982969533,0.012788,78197.0,78193.0,0.0003326]
[1743982969731,0.012789,78192.0,78191.0,6e-07]
[1743982969937,0.2686,78183.0,78182.0,2e-07]
[1743982970073,0.8185669,78183.0,78182.0,2e-07]
[1743982970273,0.82640938,78183.0,78182.0,2e-07]
[1743982970553,0.01501458,78183.0,78182.0,0.0050002]
[1743982970751,0.01501458,78183.0,78182.0,0.0177902]
[1743982970912,0.255773,78195.0,78186.0,0.01279]
[1743982971119,0.012786,78209.0,78206.0,0.005]
[1743982971312,0.012787,78203.0,78201.0,0.005]
[1743982971516,0.268544,78200.0,78197.0,0.005]
[1743982971724,0.268538,78201.0,78199.0,0.005]
[1743982971887,0.012787,78200.0,78199.0,0.005]
[1743982972089,0.268544,78199.0,78198.0,0.005]
[1743982972346,0.012787,78202.0,78198.0,0.03]
[1743982972499,0.268543,78200.0,78198.0,0.005]
[1743982972708,0.012787,78199.0,78198.0,0.03]
[1743982973502,0.255741,78204.0,78198.0,0.03]
[1743982973703,0.00013696,78213.0,78211.0,0.03]
[1743982973904,0.012785,78212.0,78211.0,0.03]
[1743982974203,0.012785,78212.0,78200.0,0.012787]
[1743982974204,0.268538,78201.0,78200.0,0.005]
[1743982974403,0.268538,78201.0,78189.0,0.255789]
[1743982974404,0.012788,78195.0,78194.0,0.03]
[1743982974738,0.01279,78186.0,78182.0,0.0493002]
[1743982975059,0.01279,78185.0,78182.0,0.0793002]
[1743982975287,0.01279,78183.0,78182.0,0.0543002]
[1743982975488,0.01279,78183.0,78182.0,0.0050002]
[1743982975719,0.01279,78185.0,78182.0,0.0300002]
[1743982975920,0.268573,78191.0,78190.0,0.005]
[1743982976037,0.012788,78193.0,78188.0,0.005]
[1743982976237,0.255776,78194.0,78190.0,0.005]
[1743982976436,0.012789,78190.0,78188.0,0.005]
[1743982976639,0.1293887,78193.0,78188.0,0.005]
[1743982976884,0.01279,78183.0,78182.0,0.0050002]
[1743982977055,0.2686,78183.0,78182.0,0.0050002]
[1743982977257,0.012789,78188.0,78184.0,0.025]
[1743982977462,0.012788,78193.0,78192.0,0.005]
[1743982977742,0.012789,78191.0,78187.0,0.005]
[1743982977952,0.012789,78188.0,78187.0,0.005]
[1743982978155,0.25581,78183.0,78182.0,2e-07]
[1743982978373,0.2686,78183.0,78182.0,2e-07]
[1743982978580,0.2686,78183.0,78182.0,0.0250002]
[1743982978817,0.2686,78183.0,78182.0,2e-07]
[1743982979206,0.2686,78183.0,78182.0,0.0050002]
[1743982979551,0.25581,78183.0,78182.0,0.0050002]
[1743982979928,0.2686,78183.0,78182.0,0.0050002]
[1743982980283,0.2686,78183.0,78182.0,2e-07]
[1743982980959,0.4798452,78183.0,78182.0,2e-07]
[1743982981628,0.25681,78183.0,78182.0,0.0100002]
[1743982982063,0.25681,78183.0,78182.0,2e-07]
[1743982982064,0.8145887,78183.0,78182.0,2e-07]
[1743982982236,0.268671,78162.0,78161.0,0.0023344]
[1743982982457,0.3980597,78162.0,78161.0,0.0023344]
[1743982983037,0.255862,78167.0,78166.0,0.005]
[1743982983244,0.671443,78173.0,78172.0,0.005]
[1743982983442,0.012792,78170.0,78168.0,0.005]
[1743982983646,0.012792,78169.0,78168.0,0.005]
[1743982984095,0.268647,78169.0,78168.0,0.005]
[1743982985309,0.269647,78169.0,78168.0,0.007]
[1743982985513,0.28443564,78169.0,78168.0,0.005]
[1743982985872,0.28543564,78169.0,78168.0,0.005]
[1743982986209,0.268665,78164.0,78162.0,0.005]
[1743982986409,0.268668,78163.0,78162.0,0.005]
[1743982986569,0.012793,78162.0,78161.0,0.0073344]
[1743982986749,0.28345664,78163.0,78161.0,0.0073344]
[1743982986954,0.012793,78162.0,78161.0,0.0073344]
[1743982987163,0.02758164,78162.0,78161.0,0.0073344]
[1743982987370,0.02758164,78162.0,78161.0,0.0323344]
[1743982987841,0.02767183,78162.0,78161.0,0.0323344]
[1743982988229,0.02767183,78162.0,78161.0,0.0273344]
[1743982988230,0.01487883,78162.0,78161.0,0.0273344]
[1743982988763,0.01587883,78162.0,78161.0,0.0293344]
[1743982989811,0.01587883,78162.0,78161.0,0.0043344]
[1743982990013,0.02867183,78162.0,78161.0,0.002]
[1743982990379,0.01587883,78162.0,78161.0,0.0043344]
[1743982990578,0.01587883,78162.0,78161.0,0.0293344]
[1743982990779,0.255746,78203.0,78195.0,0.02494686]
[1743982991004,0.255734,78207.0,78206.0,0.0023344]
[1743982991379,0.023,78209.0,78208.0,0.02728126]
[1743982991585,0.01824296,78209.0,78208.0,0.63574396]
[1743982991781,0.002,78239.0,78208.0,0.63574396]
[1743982991782,0.268441,78229.0,78228.0,0.02728126]
[1743982991980,0.255659,78229.0,78228.0,0.02728126]
[1743982992286,0.268441,78229.0,78228.0,0.02728126]
[1743982992466,0.255659,78229.0,78228.0,0.02728126]
[1743982992668,0.255644,78234.0,78233.0,0.02728126]
[1743982992870,0.255625,78240.0,78237.0,0.0023344]
[1743982993066,0.255625,78240.0,78236.0,0.02494686]
[1743982993067,0.11264026,78247.0,78238.0,0.02728126]
[1743982993510,0.11264026,78247.0,78237.0,0.21052]
[1743982993511,0.268411,78238.0,78237.0,0.0023344]
[1743982993948,0.268411,78238.0,78234.0,0.0023344]
[1743982993949,0.268422,78235.0,78234.0,0.0023344]
[1743982994080,0.012782,78233.0,78232.0,0.0023344]
[1743982994301,0.268428,78233.0,78232.0,0.02728126]
[1743982994703,0.25564,78235.0,78234.0,0.02728126]
[1743982995049,0.002136,78239.0,78238.0,0.0023344]
[1743982995251,0.002136,78239.0,78238.0,0.16945096]
[1743982995451,0.002136,78239.0,78238.0,0.08816226]
[1743982995882,0.002136,78239.0,78238.0,0.07538126]
[1743982996075,0.014917,78239.0,78238.0,0.0023344]
[1743982996232,0.012782,78233.0,78230.0,0.0023344]
[1743982996432,0.012782,78231.0,78230.0,0.0023344]
[1743982996664,0.012782,78231.0,78230.0,0.02728126]
[1743982996834,0.02496741,78231.0,78230.0,0.0023344]
[1743982997034,0.268469,78221.0,78220.0,0.07248126]
[1743982997595,0.45222981,78221.0,78216.0,0.02494686]
[1743982997750,0.3850777,78220.0,78213.0,0.02494686]
[1743982997957,0.255702,78216.0,78213.0,0.02494686]
[1743982998155,0.3850777,78220.0,78213.0,0.02494686]
[1743982998353,0.255666,78228.0,78225.0,0.0023344]
[1743982998557,0.250666,78228.0,78225.0,0.0023344]
[1743982998737,0.250666,78228.0,78225.0,0.02728126]
[1743982998936,0.250666,78228.0,78227.0,0.0023344]
[1743982999137,0.257764,78239.0,78230.0,0.0023344]
[1743982999402,0.257764,78239.0,78236.0,0.0023344]
[1743982999403,0.012781,78237.0,78236.0,0.0023344]
[1743982999524,0.25563,78238.0,78236.0,0.0023344]
[1743982999724,0.002136,78239.0,78238.0,0.02728126]
[1743983000544,0.002136,78239.0,78238.0,0.04006226]
[1743983000971,0.002136,78239.0,78238.0,0.17200712]
[1743983001400,0.002136,78239.0,78238.0,0.02728126]
[1743983001559,0.002136,78239.0,78238.0,0.04006226]
[1743983002048,0.002136,78239.0,78238.0,0.04606226]
[1743983002538,0.002136,78239.0,78238.0,0.0083344]
[1743983002896,0.002136,78239.0,78238.0,0.04606226]
[1743983003287,0.002136,78239.0,78238.0,0.0211154]
[1743983003482,0.002136,78239.0,78238.0,0.04606226]
[1743983003688,0.002136,78239.0,78238.0,0.0211154]
[1743983003986,0.002136,78239.0,78238.0,0.04606226]
[1743983004587,0.002136,78239.0,78238.0,0.0083344]
[1743983005068,0.01503942,78239.0,78238.0,0.0083344]
[1743983005280,0.002136,78239.0,78238.0,0.0083344]
[1743983005423,0.01503942,78239.0,78238.0,0.04606226]
[1743983005629,0.0001675,78246.0,78245.0,0.2707214]
[1743983005833,0.0001675,78246.0,78245.0,0.02728126]
[1743983006263,0.0001675,78246.0,78245.0,0.04006126]
[1743983007304,0.0001675,78246.0,78245.0,0.04606126]
[1743983007545,0.0001675,78246.0,78245.0,0.02728126]
[1743983007777,0.0001675,78246.0,78245.0,0.23748126]
[1743983007962,0.0001675,78246.0,78245.0,0.24348126]
[1743983008115,0.01259359,78246.0,78245.0,0.23748126]
[1743983008324,0.02537359,78246.0,78245.0,0.23748126]
[1743983008526,0.02537359,78246.0,78245.0,0.2185344]
[1743983008730,0.02537359,78246.0,78245.0,0.23748126]
[1743983008959,0.02537359,78246.0,78245.0,0.2125344]
[1743983009211,0.02537359,78246.0,78245.0,0.23748126]
[1743983009396,0.02537359,78246.0,78245.0,0.2125344]
[1743983009597,0.01259359,78246.0,78245.0,0.23748126]
[1743983009817,0.01259359,78246.0,78245.0,0.2125344]
[1743983009818,0.02537359,78246.0,78245.0,0.2125344]
[1743983010188,0.02537359,78246.0,78245.0,0.0083344]
[1743983010365,0.02537359,78246.0,78245.0,0.0023344]
[1743983010570,0.01259359,78246.0,78245.0,0.04006126]
[1743983010930,0.01259359,78246.0,78245.0,0.04606126]
[1743983011110,0.0001675,78246.0,78245.0,0.04606126]
[1743983011693,0.0001675,78246.0,78245.0,0.03328126]
[1743983012510,0.01259359,78246.0,78245.0,0.03328126]
[1743983014321,0.08032328,78246.0,78245.0,0.006]
[1743983014520,0.15476229,78246.0,78245.0,0.006]
[1743983016309,0.01278,78244.0,78243.0,0.0023344]
[1743983016700,0.02525934,78244.0,78243.0,0.0023344]
[1743983017122,0.02525934,78244.0,78243.0,0.04006126]
[1743983017123,0.01247934,78244.0,78243.0,0.04006126]
[1743983017328,0.0001675,78246.0,78243.0,0.02728126]
[1743983017527,0.0001675,78246.0,78245.0,0.02728126]
[1743983018184,0.0001675,78246.0,78245.0,0.29566826]
[1743983019393,0.0001675,78246.0,78245.0,0.02728126]
[1743983020355,0.0001675,78246.0,78245.0,0.03328126]
[1743983020556,0.0129475,78246.0,78245.0,0.03328126]
[1743983020755,0.0129475,78246.0,78245.0,0.02728126]
[1743983020958,0.0129475,78246.0,78245.0,0.03328126]
[1743983021330,0.0129475,78246.0,78245.0,0.02728126]
[1743983021491,0.01278,78244.0,78243.0,0.0023344]
[1743983021696,0.0001675,78246.0,78244.0,0.28289026]
[1743983021896,0.0001675,78246.0,78245.0,0.02494686]
[1743983022276,0.0129475,78246.0,78245.0,0.02494686]
[1743983022477,0.0129475,78246.0,78245.0,0.0023344]
[1743983022863,0.0129475,78246.0,78245.0,0.02728126]
[1743983023113,0.0129475,78246.0,78245.0,0.03328126]
[1743983023281,0.0129475,78246.0,78245.0,0.02728126]
[1743983023683,0.0129475,78246.0,78245.0,0.03328126]
[1743983023914,0.0001675,78246.0,78245.0,0.03328126]
[1743983024518,0.0001675,78246.0,78245.0,0.04606126]
[1743983025113,0.0001675,78246.0,78245.0,0.22610587]
[1743983025310,0.0001673,78266.0,78265.0,0.29560026]
[1743983025736,0.0006202,78266.0,78265.0,0.29560026]
[1743983027403,0.0006202,78266.0,78265.0,0.30160026]
[1743983028286,0.0006202,78266.0,78265.0,0.44355274]
[1743983029313,0.0006202,78266.0,78265.0,0.83626259]
[1743983029530,3e-07,78271.0,78270.0,0.0151104]
[1743983029761,0.00013609,78271.0,78270.0,0.55790058]
[1743983029960,0.00013609,78271.0,78270.0,0.55534596]
[1743983030671,0.002,78299.0,78293.0,0.34230326]
[1743983030877,0.002,78299.0,78293.0,0.72731196]
[1743983031071,0.002,78299.0,78293.0,0.7509617]
[1743983031274,0.002,78299.0,78293.0,0.59662614]
[1743983031496,0.002,78299.0,78293.0,0.574773]
[1743983031830,0.002,78299.0,78293.0,0.273423]
[1743983032018,0.002,78299.0,78293.0,0.24977326]
[1743983033120,0.002,78299.0,78293.0,0.25577326]
[1743983033334,0.002,78299.0,78293.0,0.04605326]
[1743983034898,0.002,78299.0,78293.0,0.03328126]
[1743983035099,0.002,78299.0,78293.0,0.006]
[1743983035100,0.0129394,78294.0,78293.0,0.006]
[1743983035303,0.0129394,78294.0,78293.0,0.0083344]
[1743983035500,0.02586675,78294.0,78293.0,0.006]
[1743983035772,0.15525545,78294.0,78293.0,0.006]
[1743983035974,0.012773,78290.0,78289.0,0.0023344]
[1743983036148,0.268222,78293.0,78289.0,0.0023344]
[1743983036347,0.255457,78291.0,78289.0,0.0023344]
[1743983036549,0.1421607,78292.0,78286.0,0.02494686]
[1743983036550,0.15508805,78292.0,78290.0,0.0023344]
[1743983036751,0.15508805,78292.0,78286.0,0.02494686]
[1743983036752,0.0001674,78294.0,78293.0,0.0023344]
[1743983036954,0.0001674,78294.0,78293.0,0.0151064]
[1743983037366,0.0001674,78294.0,78293.0,0.04005326]
[1743983038448,0.0001674,78294.0,78293.0,0.08765326]
[1743983038876,0.0001674,78294.0,78293.0,0.07488126]
[1743983039035,0.0001674,78294.0,78293.0,0.04005326]
[1743983039252,0.0129394,78294.0,78293.0,0.02728126]
[1743983039643,0.0129394,78294.0,78293.0,0.03094686]
[1743983039857,0.17191974,78294.0,78293.0,0.03094686]
[1743983040058,0.17191974,78294.0,78289.0,0.0023344]
[1743983040059,0.012772,78291.0,78289.0,0.0023344]
[1743983040261,0.268246,78286.0,78285.0,0.0023344]
[1743983040472,0.268246,78286.0,78285.0,0.02494686]
[1743983040473,0.1293887,78286.0,78285.0,0.02494686]
[1743983040853,0.255436,78298.0,78291.0,0.0023344]
[1743983040854,0.012772,78292.0,78291.0,0.0023344]
[1743983041863,0.012773,78287.0,78285.0,0.006]
[1743983042011,0.1421617,78286.0,78285.0,0.006]
[1743983042619,0.268229,78292.0,78285.0,0.006]
[1743983042620,0.0001675,78312.0,78293.0,0.012772]
[1743983042821,0.014771,78299.0,78293.0,0.02728126]
[1743983043020,0.012773,78289.0,78288.0,0.0023344]
[1743983043291,0.14248345,78294.0,78288.0,0.0023344]
[1743983043511,0.012774,78284.0,78283.0,0.0023344]
[1743983043724,0.14231605,78293.0,78288.0,0.012773]
[1743983043937,0.1293887,78293.0,78292.0,0.012772]
[1743983044152,0.0001674,78294.0,78293.0,0.2705564]
[1743983045001,0.0001674,78294.0,78293.0,0.0151064]
[1743983045418,0.0001674,78294.0,78293.0,0.04005326]
[1743983045651,0.0001674,78294.0,78293.0,0.02728126]
[1743983046132,0.0001674,78294.0,78293.0,0.04005326]
[1743983046326,0.01309475,78294.0,78293.0,0.04005326]
[1743983046527,0.0001674,78294.0,78293.0,0.04005326]
[1743983046731,0.0001674,78294.0,78293.0,0.0023344]
[1743983046997,0.0001674,78294.0,78293.0,0.02728126]
[1743983047530,0.01309475,78294.0,78293.0,0.02728126]
[1743983047726,0.0001674,78294.0,78293.0,0.02728126]
[1743983047934,0.15514642,78294.0,78288.0,0.02728126]
[1743983048135,0.3848387,78293.0,78288.0,0.0023344]
[1743983048344,0.39765702,78293.0,78288.0,0.0023344]
[1743983048545,0.14220702,78293.0,78292.0,0.02494686]
[1743983048758,0.01281832,78293.0,78292.0,0.04005326]
[1743983049186,0.0001674,78294.0,78293.0,0.29550326]
[1743983049564,0.0001674,78294.0,78293.0,0.02728126]
[1743983049786,0.012772,78293.0,78292.0,0.02494686]
[1743983049974,0.1293887,78293.0,78292.0,0.02494686]
[1743983050183,0.0001674,78294.0,78293.0,0.02728126]
[1743983050376,0.0001674,78294.0,78293.0,0.29550326]
[1743983051436,0.0001674,78294.0,78293.0,0.42489196]
[1743983051788,0.0001674,78294.0,78293.0,0.43089196]
[1743983051994,0.0001674,78294.0,78293.0,0.43449777]
[1743983052293,0.0001674,78294.0,78293.0,0.28934969]
[1743983052508,0.0001674,78294.0,78293.0,0.49625529]
[1743983052735,0.0001674,78294.0,78293.0,0.49258969]
[1743983053407,0.0001674,78294.0,78293.0,0.51753655]
[1743983053850,0.0001674,78294.0,78293.0,0.49258969]
[1743983054020,0.2683864,78294.0,78293.0,0.0023344]
[1743983054167,0.2683864,78294.0,78291.0,0.0023344]
[1743983054168,0.268229,78292.0,78291.0,0.0023344]
[1743983054816,0.268229,78292.0,78291.0,0.02728126]
[1743983055039,0.2683864,78294.0,78291.0,0.02728126]
[1743983055213,0.0001674,78294.0,78293.0,0.04605326]
[1743983055434,0.0001674,78294.0,78293.0,0.04005326]
[1743983056231,0.0001674,78294.0,78293.0,0.16944196]
[1743983056407,0.0001674,78294.0,78293.0,0.17199628]
[1743983057385,0.0001674,78294.0,78293.0,0.27619628]
[1743983057549,0.0001674,78294.0,78293.0,0.27364196]
[1743983057766,0.0001675,78312.0,78298.0,0.0151054]
[1743983057974,0.0001675,78312.0,78311.0,0.29544126]
[1743983058176,0.0001675,78312.0,78311.0,0.42482996]
[1743983059119,0.0001675,78312.0,78311.0,0.48322783]
[1743983059407,0.0001675,78312.0,78311.0,0.53132783]
[1743983059962,0.0001673,78318.0,78317.0,0.63542126]
[1743983060337,0.0001673,78318.0,78317.0,0.97384996]
[1743983060728,0.002,78329.0,78325.0,0.03228126]
[1743983060931,0.0001673,78345.0,78344.0,0.29299486]
[1743983061117,0.00062003,78345.0,78344.0,0.29532926]
[1743983061461,0.00062003,78345.0,78344.0,0.30798267]
[1743983061878,0.00062003,78345.0,78344.0,0.53117137]
[1743983062113,0.00062003,78345.0,78344.0,0.53717137]
[1743983062315,0.00062003,78345.0,78344.0,0.87717137]
[1743983062549,0.0001671,78362.0,78358.0,0.29274044]
[1743983062747,0.12230309,78379.0,78371.0,0.267953]
[1743983062945,0.012756,78392.0,78387.0,0.0023344]
[1743983063150,0.014756,78389.0,78388.0,0.0023344]
[1743983063433,0.01489183,78389.0,78388.0,0.0023344]
[1743983063632,0.00213583,78389.0,78388.0,0.02728126]
[1743983064570,0.00213583,78389.0,78388.0,0.04003826]
[1743983065161,0.00213583,78389.0,78388.0,0.02728126]
[1743983065360,0.00213583,78389.0,78388.0,0.02494686]
[1743983065361,0.01489183,78389.0,78388.0,0.02494686]
[1743983065564,0.012758,78377.0,78376.0,0.0023344]
[1743983065763,0.267934,78377.0,78376.0,0.0023344]
[1743983066224,0.012758,78382.0,78381.0,0.02728126]
[1743983066399,0.267918,78382.0,78381.0,0.02494686]
[1743983066569,0.267918,78382.0,78381.0,0.02728126]
[1743983067067,0.267931,78378.0,78367.0,0.476809]
[1743983067223,0.012758,78377.0,78376.0,0.0023344]
[1743983067416,0.255184,78375.0,78374.0,0.0023344]
[1743983067624,0.255184,78375.0,78358.0,0.255236]
[1743983067625,0.012759,78374.0,78373.0,0.0023344]
[1743983067949,0.012759,78374.0,78373.0,0.02728126]
[1743983068585,0.012759,78374.0,78370.0,0.0023344]
[1743983068586,0.267955,78371.0,78370.0,0.0023344]
[1743983068750,0.267955,78371.0,78370.0,0.02728126]
[1743983069426,0.255196,78371.0,78370.0,0.02728126]
[1743983070047,0.267955,78371.0,78370.0,0.02728126]
[1743983071137,0.255196,78371.0,78370.0,0.02728126]
[1743983071368,0.255196,78371.0,78370.0,0.03328126]
[1743983071804,0.267955,78371.0,78370.0,0.03328126]
[1743983072017,0.267955,78371.0,78370.0,0.0083344]
[1743983072289,0.267955,78371.0,78370.0,0.03328126]
[1743983072850,0.255196,78371.0,78370.0,0.03328126]
[1743983073220,0.267955,78371.0,78370.0,0.03328126]
[1743983073526,0.4802801,78371.0,78370.0,0.006]
[1743983073654,0.3973437,78371.0,78370.0,0.006]
[1743983073856,0.3973437,78371.0,78349.0,0.012763]
[1743983073857,0.012763,78348.0,78347.0,0.0023344]
[1743983074053,0.255268,78349.0,78348.0,0.0023344]
[1743983074456,0.268023,78352.0,78346.0,0.02494686]
[1743983074457,0.255266,78350.0,78349.0,0.0023344]
[1743983074683,0.268029,78350.0,78349.0,0.0023344]
[1743983074881,0.012764,78345.0,78344.0,0.02494686]
[1743983075081,0.268037,78347.0,78334.0,0.268079]
[1743983075082,0.255274,78347.0,78346.0,0.02728126]
[1743983075290,0.268037,78347.0,78346.0,0.02728126]
[1743983075635,0.268075,78336.0,78334.0,0.0023344]
[1743983075811,0.012766,78330.0,78329.0,0.0023344]
[1743983076242,0.02633631,78330.0,78329.0,0.0023344]
[1743983076460,0.012766,78330.0,78329.0,0.0023344]
[1743983076664,0.02633631,78330.0,78329.0,0.0023344]
[1743983076866,0.012766,78330.0,78329.0,0.0023344]
[1743983077101,0.268113,78325.0,78318.0,0.02494686]
[1743983077342,0.41107201,78325.0,78323.0,0.02494686]
[1743983078026,0.012767,78321.0,78320.0,0.0023344]
[1743983078238,0.012767,78321.0,78320.0,0.02728126]
[1743983078491,0.012767,78321.0,78320.0,0.02773399]
[1743983078911,0.02633731,78321.0,78320.0,0.02773399]
[1743983079800,0.02633731,78321.0,78320.0,0.00278713]
[1743983081445,0.01457031,78321.0,78320.0,0.03073399]
[1743983081935,0.001,78321.0,78320.0,0.29886399]
[1743983083077,0.268077,78336.0,78320.0,0.29886399]
[1743983083078,0.255313,78335.0,78329.0,0.268098]
[1743983083216,0.012765,78336.0,78328.0,0.02494686]
[1743983083217,0.268096,78330.0,78328.0,0.02494686]